{"text_format":"1","workbook":"xlsx","n_sheets":1,"sheets":["ZŠ Vrchlického"],"not_rendered":{"charts":0,"images":0,"macros":1,"external_links":0,"defined_names":15,"comments":0,"pivot_tables":0},"unopened":[],"bounds":{"document_bytes":16777216,"sheet_cells":100000,"rows_first":2000,"rows_last":500,"rows_between":2000,"halvings":0,"cell_chars":16384,"cell_head_chars":4096},"cells_cut":0,"cells_raw":0,"read":"whole","date_system":"1900"}

{"sheet":"ZŠ Vrchlického","index":0,"n_rows":425,"n_cols":6,"rows_kept":425,"cut":false,"hidden":false,"merged":[[54,1,54,5],[56,1,56,5],[3,1,3,4],[5,1,5,4],[51,1,51,5],[45,1,45,5],[40,1,40,5],[48,1,48,5]]}
[null,"INVESTOR: Město Šumperk, náměstí Míru 1"]
[null,"787 01 Šumperk"]
[]
[null,"Do odborných učeben bez bariér\nZákladní škola, Vrchlického 22, 78701 Šumperk\n"]
[]
[null,"DPS - SLABOPROUDÉ ROZVODY"]
[]
[]
[null,"12.1 VÝKAZY VÝMĚR"]
[]
[null,"Rekapitulace - položky",null,null,null,"CENA"]
[null,"Dodávka aktivních prvků ",null,null,null,{"$f":"F60","v":0}]
[null,"Montáž aktivních prvků",null,null,null,{"$f":"F73","v":0}]
[null,"Stěhování racku RD.1B (z učebny IT 1) a RD  (z učebny IT 2)",null,null,null,{"$f":"F103","v":0}]
[null,"Dodávka strukturované kabeláže kat.6A",null,null,null,{"$f":"F160","v":0}]
[null,"Montáž strukturované kabeláže kat.6A",null,null,null,{"$f":"F194","v":0}]
[null,"Dodávka optické kabeláže ",null,null,null,{"$f":"F210","v":0}]
[null,"Montáž optické kabeláže ",null,null,null,{"$f":"F218","v":0}]
[null,"Měření metalické a optické kabeláže",null,null,null,{"$f":"F231","v":0}]
[null,"Dodávka Jednotný čas",null,null,null,{"$f":"F247","v":0}]
[null,"Montáž Jednotný čas",null,null,null,{"$f":"F258","v":0}]
[null,"Dodávka trasy",null,null,null,{"$f":"F378","v":0}]
[null,"Montáž trasy",null,null,null,{"$f":"F413","v":0}]
[null,"Stavební výpomoc. práce (sekání, průrazy, utěsnění, tmelení..)",null,null,null,{"$f":"F425","v":0}]
[null,"Doprava materiálu a techniků, zařízení staveniště",null,null,null,0]
[null,"Odvoz demontovaného SLP materiálu vč. poplatku za skládku",null,null,null,0]
[null,"Dokumentace skutečného provedení stavby",null,null,null,0]
[null,"CELKEM bez DPH [Kč]",null,null,null,{"$f":"SUM(F12:F27)","v":0}]
[]
[null,"Rozpočet neobsahuje náklady na zapravení omítek - štuku,"]
[null,"ani vymalování rekonstruovaných prostor."]
[]
[null,"Ceny dodávek odpovídají aktuálnímu kurzu 1€ prodej za 27,00CZK."]
[null,"Ceny dodávek odpovídají aktuálnímu kurzu 1$ prodej za 23,00CZK."]
[]
[]
[]
[]
[null,"Dodávka aktivních prvků, AP-WiFi, UPS","měr.","celk.","jedn.","cena"]
[null,"Specifikace","jed.","mn.","cena","celková"]
[null,"RD.1A- centrální switch (L3, dva zdroje, 4xSFP, 48x10/100/1000)"]
[null,"L3 Switch s managementem 48-port GE, sloty 4 x 1G SFP","ks",1,null,{"$f":"(D42*E42)","v":0}]
[null,"Síťový modul do L3 switche 4 x 1G Network Module","ks",1,null,0]
[null,"Zdroj 125W AC Config 6 Power Supply","ks",1,null,0]
[null,"Licence pro L3 Switch 48-port - 3 Year Term License","ks",1,null,0]
[null,"RD.1A - přístupový switch (L2, PoE+ 370W, 4xSFP, 48x10/100/1000)"]
[null,"L2 Switch s managementem 48port GE, PoE, 4x1G SFP","ks",4,null,{"$f":"(D47*E47)","v":0}]
[null,"AC Power Cord, 1.5m","ks",4,null,0]
[null,"RD.1A - přístupový switch (L2, 4xSFP, 48x10/100/1000)"]
[null,"L2 Switch s managementem 48port GE, 4x1G SFP","ks",1,null,{"$f":"(D50*E50)","v":0}]
[null,"AC Power Cord, 1.5m","ks",1,null,0]
[null,"RD.2 - přístupový switch(L2, PoE+, 4xSFP, 16x10/100/1000, pasivní chlazení - tichý chod)"]
[null,"L2 Switch s managementem 16port GE, PoE, 2x1G SFP","ks",1,null,{"$f":"(D53*E53)","v":0}]
[null,"AC Power Cord, 1.5m","ks",1,null,0]
[null,"1GB SFP modul pro single mode optiku LC konektor "]
[null,"SFP optický modul, 1000BASE-LX/LH SFP transceiver module, MMF/SMF, 1310nm, DOM","ks",3,null,{"$f":"(D56*E56)","v":0}]
[null,"Bezdrátový přístupový bod 802.11ac Wave2 (2,4+5GHZ) funkce kontroleru integrována v AP, správa z 1 místa"]
[null,"Ubiquiti Networks UBNT UniFi AP AC Long Range, LAN port 10/100/1000Mbps, PoE24V, 0,5A, dvě pásma 2,4 a 5,4GHz,\nmožnost až 4 skupin (každá samostatné heslo)","ks",6,null,{"$f":"(D58*E58)","v":0}]
[null,"UPS 3000VA LCD RM (2700W)/ 2U, Rack mount","ks",1,null,{"$f":"(D59*E59)","v":0}]
[null,"CELKEM materiál","[Kč]",null,null,{"$f":"SUM(F40:F59)","v":0}]
[]
[null,"Montáž a oživení aktivních prvků","měr.","celk.","jedn.","cena"]
[null,"Specifikace","jed.","mn.","cena","celková"]
[null,"Nové aktivní prvky"]
[null,"Montáž Gbic 1Gbps Module","ks",3,null,{"$f":"(D65*E65)","v":0}]
[null,"Montáž a oživení L3 Switche 48port 100/1000 RJ45 bez PoE","ks",1,null,0]
[null,"Montáž a oživení L2 Switche 48port 100/1000 RJ45 (24xPoE)","ks",4,null,0]
[null,"Montáž a oživení L2 Switche 48port 100/1000 RJ45 bez PoE","ks",1,null,0]
[null,"Montáž a oživení L2 Switche 16port 100/1000 RJ45 PoE","ks",1,null,0]
[null,"Demontáž stávající AP-WiFi","ks",9,null,0]
[null,"Montáž AP-WiFi, zaměření, oživení, vyzkoušení","ks",15,null,0]
[null,"Montáž UPS 3000VA, oživení ","ks",1,null,0]
[null,"CELKEM montáž a oživení","[Kč]",null,null,{"$f":"SUM(F64:F72)","v":0}]
[]
[null,"Stěhování racku RD.1B (z učebny IT 1) a RD  (z učebny IT 2)","měr.","celk.","jedn.","cena"]
[null,"Specifikace","jed.","mn.","cena","celková"]
[null,"Fotodokumentace uspořádání, vybavení a zapoj. racku ve stáv. umístění","ks",2,null,{"$f":"(D77*E77)","v":0}]
[null,"Demontáže racku RD.1B"]
[null,"Demontáž modemu ","ks",1,null,{"$f":"(D79*E79)","v":0}]
[null,"Demontáž UPS APC Back-UPS Pro BR1200GI 1200VA, 720W","ks",1,null,0]
[null,"Demontáž stávajícího switche Cisco SG200-26 26 port Gigabit","ks",2,null,{"$f":"(D81*E81)","v":0}]
[null,"Demontáž stávajícího switche CISCO Linksys SRW224G4, 24x Fast Eth + 4x Gbit - WebView","ks",2,null,{"$f":"(D82*E82)","v":0}]
[null,"Demontáž stávajícího Dell server PowerEdge R410","ks",1,null,{"$f":"(D83*E83)","v":0}]
[null,"Demontáž stávajícího monitoru a klávesnice","ks",1,null,0]
[null,"Demontáž PoE injektoru ","ks",1,null,0]
[null,"Demontáž skříně rozvaděče RD.1B (z PE, z napájení 230Vac, označení a odpojení patch kabelů)","ks",1,null,0]
[null,"Demontáže racku RD "]
[null,"Demontáž stáv. switche TP-LINK TL-SL 1226, 24 port FE + 2 port GE","ks",2,null,{"$f":"(D88*E88)","v":0}]
[null,"Demontáž Patch panelu","ks",2,null,{"$f":"(D89*E89)","v":0}]
[null,"Demontáž management panelu (hřebeny)","ks",2,null,0]
[null,"Demontáž skříně rozvaděče RD (9U) z PE, z napájení 230Vac, označení a odpojení patch kabelů)","ks",1,null,{"$f":"(D91*E91)","v":0}]
[null,"Demontáž prodlužovacího přívodu 3x230Vac","ks",1,null,{"$f":"(D92*E92)","v":0}]
[null,"Demontáž stávající kabeláže UTP z učebny IT 1 a IT 2","HZS",16,null,0]
[null,"Montáže RD.1B do rozvodny SLP m.č. 126"]
[null,"Montáž skříně rozvaděče RD.1B na místo (připojení PE zž CYA16,  napájení 230Vac, propojení patch kabely)","ks",1,null,{"$f":"(D95*E95)","v":0}]
[null,"Montáž stávajícího switche Cisco SG200-26 26 port Gigabit","ks",2,null,{"$f":"(D96*E96)","v":0}]
[null,"Montáž stávajícího switche CISCO Linksys SRW224G4, 24x Fast Eth + 4x Gbit - WebView","ks",2,null,{"$f":"(D97*E97)","v":0}]
[null,"Montáž stávajícího Dell server PowerEdge R410","ks",1,null,{"$f":"(D98*E98)","v":0}]
[null,"Montáž stávajícího monitoru a klávesnice na polici","ks",1,null,{"$f":"(D99*E99)","v":0}]
[null,"Montáž stávaj. switche TP-LINK TL-SL 1226, 24 port FE + 2 port GE","ks",2,null,{"$f":"(D100*E100)","v":0}]
[null,"Montáž management panelu (hřebeny)","ks",2,null,{"$f":"(D101*E101)","v":0}]
[null,"Ostatní drobné práce","celk.",1,null,0]
[null,"CELKEM demontáž, montáž a oživení","[Kč]",null,null,{"$f":"SUM(F76:F102)","v":0}]
[]
[]
[null,"Dodávka strukturované kabeláže kat. 6A","měr.","celk.","jedn.","cena"]
[null,"Specifikace","jed.","mn.","cena","celková"]
[null,"Instalační kabel CAT6A STP oranž. B2ca s1 d1 a1, 500m návin - cívka","m",25500,null,{"$f":"(D108*E108)","v":0}]
[null,"Patch panel 19\" neosazený 10G, 24 portů, 1U pro Cat6A keystony","ks",21,null,0]
[null,"Keystone CAT6A, STP, RJ45 pro10G, černý, samořezný","ks",847,null,0]
[null,"Modul French style 45x45mm pro 2 keys., přímý, bílý ","ks",32,null,0]
[null,"Vyvazovací panel 1U,  plastový hřeben","ks",20,null,0]
[null,"Zásuvka 1xRJ45 (kat.6A) na omítku","ks",19,null,0]
[null,"Zásuvka 1xRJ45 (kat.6A) pod povrch","ks",2,null,0]
[null,"Zásuvka 2xRJ45 (kat.6A) na omítku","ks",151,null,0]
[null,"Zásuvka 2xRJ45 (kat.6A) pod povrch","ks",34,null,0]
[null,"Krabice na povrch (box pod zásuvku)","ks",170,null,{"$f":"(D117*E117)","v":0}]
[null,"Patch kabel CAT6A, LSOH, délka 1m","ks",300,null,0]
[null,"Patch kabel CAT6A, LSOH, délka 2m","ks",50,null,0]
[null,"Patch kabel CAT6A, LSOH, délka 3m","ks",230,null,0]
[null,"Patch kabel CAT6A, LSOH, délka 5m","ks",5,null,0]
[null,"Ostatní kabely a slaboproudé komponenty"]
[null,"RD.1A rack 19'' stojanový 45U/600x1000mm, proskl. dveře se zámkem","ks",1,null,{"$f":"(D123*E123)","v":0}]
[null,"RD.2 rack 19'' nástěnný skládaný 12U/600x500mm nedělený, prosklené dveře se zámkem","ks",1,null,0]
[null,"Ventilátorová jednotka univerzální se 4 ventilátory a termost. 230Vac/60W ","ks",1,null,0]
[null,"Podstavec ventilační s filtrem pro rack RD.1A a RD.1B","ks",2,null,0]
[null,"Vertikální vyvazov. žlab 45U kovový pozink 120x50mm","ks",2,null,0]
[null,"1U Police 19\", hloubká 350mm, pevná","ks",2,null,0]
[null,"Přepěťová ochrana pro Ethernet 10 Gbit/s (Cat.6A) s PoE, režimu A, B, 2 kA (10/350 µs)","ks",2,null,0]
[null,"Elektroinstalační krabice na povrch pro dvě přepěťové ochrany","ks",1,null,0]
[null,"Prodlužovací přívod 5x230Vac včetně filtru a přepěťové ochrany, 19\" ","ks",4,null,0]
[null,"Konektor RJ45, kategorie 5E, male na drát","ks",69,null,0]
[null,"Konektor RJ45, male Cat.6A STP8p8c stíněný skládaný na drát","ks",69,null,{"$f":"(D133*E133)","v":0}]
[null,"Oboustranný stahovací suchý zip (návin 25m), šířka 10mm","ks",4,null,0]
[null,"Vodič CY, B2ca s1 d0, 6mm2 zelenožlutý","m",50,null,{"$f":"(D135*E135)","v":0}]
[null,"Vodič CYA, B2ca s1 d0, 16mm2 zelenožlutý","m",65,null,{"$f":"(D136*E136)","v":0}]
[null,"Vodič protahovací CY1,5","m",100,null,{"$f":"(D137*E137)","v":0}]
[null,"VGA kabel pro dataprojektor, HD15, 3x stíněný, 2x ferit, černo/šedý 10m","ks",3,null,{"$f":"(D138*E138)","v":0}]
[null,"Vysokorychlostní HDMI kabel s aktivním zesílením, l = 10m","ks",3,null,0]
[null,"Označovač kabelů (v racku) - držák PATO 4/15 o.č. 1013148","ks",470,null,{"$f":"(D140*E140)","v":0}]
[null,"Označovač kabelů - popiska (20ks) PABA WH/15 o.č. 1013151","ks",24,null,{"$f":"(D141*E141)","v":0}]
[null,"Drobný montážní materiál (podložky, očka, svorky, stah.pásky....)","celk.",1,null,{"$f":"(D142*E142)","v":0}]
[null,"Telefonie"]
[null,"Svorkovnice LSA+2/10 rozpojovací","ks",3,null,{"$f":"(D144*E144)","v":0}]
[null,"Rám montážní (nosník 2 pozice) ","ks",2,null,0]
[null,"Bleskojistka dvoupólová 10kA/10A/230V","ks",20,null,0]
[null,"Magazín (držák pro 20ks bleskojistek)","ks",1,null,0]
[null,"Záslepka - panel plechový (1U) černý, 4 šrouby M6x 10,4 ","ks",1,null,0]
[null,"Telefonní kabel stíněný 10x2x0,8 vnitřní (B2ca s1 d0)","m",50,null,0]
[null,"VoIP ústředna IP (max.46 linek: 42xIP, 4x analog)","ks",1,null,0]
[null,"Modul linek 4 co / 4 AVL (4státní / 4analogové)","ks",1,null,0]
[null,"VoIP účastnický přístroj PoE","ks",39,null,0]
[null,"Licence pro VoIP účastnický přístroj","ks",42,null,0]
[null,"IP dveřní komunikátor hlavní jedn. s kamerou","ks",3,null,0]
[null,"Modul 5 tlačítek do DK","ks",3,null,0]
[null,"Modul klávesnice do DK","ks",3,null,0]
[null,"Rám pro instalaci do zdi, 3 moduly","ks",3,null,0]
[null,"Krabice pro instalaci do zdi, 3 moduly","ks",3,null,0]
[null,"Videotelefon na sekretariát - VoIP display 7''","ks",1,null,0]
[null,"CELKEM materiál kabeláže","[Kč]",null,null,{"$f":"SUM(F108:F159)","v":0}]
[]
[null,"Montáž strukturované kabeláže kat. 6A","měr.","celk.","jedn.","cena"]
[null,"Specifikace","jed.","mn.","cena","celková"]
[null,"Uložení STP kabelu do trasy","m",25500,null,{"$f":"(D164*E164)","v":0}]
[null,"Svazkování STP kabelů po 24ks - příplatek","m",25500,null,{"$f":"(D165*E165)","v":0}]
[null,"Uložení CY6 zelenožlutý do trasy","m",50,null,{"$f":"(D166*E166)","v":0}]
[null,"Uložení CYA16 zelenožlutý do trasy","m",65,null,0]
[null,"Motáž a zapojení dvojzásuvky","ks",153,null,0]
[null,"Motáž a zapojení jednozásuvky","ks",21,null,0]
[null,"Motáž a zapojení modulu 45x45 se dvěma keystony","ks",32,null,0]
[null,"Montáž management panelu","ks",20,null,0]
[null,"Montáž prodluž. přívod 5x230V, 50Hz včetně filtru, 19\"","ks",4,null,0]
[null,"Montáž Patch panelu, kompletace","ks",21,null,0]
[null,"Montáž police do racku","ks",2,null,0]
[null,"Zakončení STP na konektoru RJ45 male","ks",69,null,{"$f":"(D175*E175)","v":0}]
[null,"Zakončení STP na konektoru RJ45","ks",391,null,0]
[null,"Zakončení STP na portu p. panelu a vyvázání","ks",458,null,{"$f":"(D177*E177)","v":0}]
[null,"Montáž racku RD.1A vč. vent. jedn. na podstavec, vyvázání kabelů","ks",1,null,{"$f":"(D178*E178)","v":0}]
[null,"Montáž racku RD.2 na stěnu, vyvázání kabelové rezervy 4m","ks",1,null,{"$f":"(D179*E179)","v":0}]
[null,"Montáž VGA kabelu do trasy z trubek","m",30,null,{"$f":"(D180*E180)","v":0}]
[null,"Montáž HDMI kabelu do trasy z trubek","m",30,null,0]
[null,"Montáž přepěťové ochrany pro Ethernet10 Gbit/s ","ks",2,null,0]
[null,"Ostatní drobné práce","celk.",1,null,0]
[null,"Telefonie"]
[null,"Instalace nového telefonního kabelu do žlabů nebo trubek","m",50,null,{"$f":"(D185*E185)","v":0}]
[null,"Úpravy ve stávající telef. rozvodnici UR (doplnění bleskojistek)","HZS",2,null,0]
[null,"Montáž rozpojovací tlf. svorkovnice 10párů ","ks",3,null,0]
[null,"Montáž jednoho páru ","ks",20,null,0]
[null,"Montáž panelu - záslepky 1U pro tlf. svorkovnici do racku","ks",1,null,0]
[null,"Demontáž stávaj. pobočkové telefon. ústředny (označení, odpojení portů)","ks",1,null,0]
[null,"Montáž nové VoIP telefonní ústředny (oživení, propojení portů)","ks",1,null,{"$f":"(D191*E191)","v":0}]
[null,"Připojení, nastavení, oživení  IP komunikátoru, konfigurace","ks",3,null,{"$f":"(D192*E192)","v":0}]
[null,"Ostatní drobné práce","celk.",1,null,0]
[null,"CELKEM montáž kabeláže","[Kč]",null,null,{"$f":"SUM(F164:F193)","v":0}]
[]
[]
[]
[null,"Dodávka optické kabeláže","měr.","celk.","jedn.","cena"]
[null,"Specifikace","jed.","mn.","cena","celková"]
[null,"CLT univerzální kabel SM 12vl. 9/125 LSZH, d=5,9mm","m",132,null,{"$f":"(D200*E200)","v":0}]
[null,"Patch kabel 9/125 SCpc/LC 1m OS1 SM duplex \n\n","ks",2,null,0]
[null,"Duplexní patchcord 9/125 SC/LC, délka 5m","ks",1,null,0]
[null,"Pigtail 9/125 SCpc SM OS 1,5m ","ks",24,null,0]
[null,"Ochrana sváru 2,2 x 45mm ","ks",24,null,0]
[null,"Vana optická 19\" 1U BK s výsuvným šuplíkem bez čela","ks",2,null,0]
[null,"Čelo optické vany 1U pro 24 SC simplex BK ","ks",2,null,0]
[null,"Adaptér SC SM OS1 simplex","ks",24,null,0]
[null,"Optická kazeta pro 24 svárů vč. držáku svaru","ks",2,null,0]
[null,"Drobný montážní materiál (podložky, očka, svorky, průchodky..)","celk.",1,null,0]
[null,"CELKEM dodávky optic. kabeláže","[Kč]",null,null,{"$f":"SUM(F200:F209)","v":0}]
[]
[null,"Montáž optické kabeláže","měr.","celk.","jedn.","cena"]
[null,"Specifikace","jed.","mn.","cena","celková"]
[null,"Montáž nového kabelu do trasy","m",132,null,{"$f":"(D214*E214)","v":0}]
[null,"Instalace a kompletace 19\"optického rozvaděče ","ks",2,null,0]
[null,"Svár optického vlákna SM ","ks",24,null,0]
[null,"Ostatní drobné práce (značení, štítky, konstr. a obaly pro kab. rezervy…)","celk.",1,null,0]
[null,"CELKEM montáž optic. kabeláže","[Kč]",null,null,{"$f":"SUM(F214:F217)","v":0}]
[]
[]
[]
[]
[null,"Měření metalické a optické kabeláže","měr.","celk.","jedn.","cena"]
[null,"Specifikace","jed.","mn.","cena","celková"]
[null,"Kabel STP 4páry, kat.6A","ks",460,null,{"$f":"(D225*E225)","v":0}]
[null,"Vypracování protokolu o měření STP","ks",1,null,{"$f":"(D226*E226)","v":0}]
[null,"Měření optického SM vlákna metodou OTDR, 2 vln.délky ","ks",12,null,0]
[null,"Měření optického SM vlákna přímou metodou, 1 vln.délka","ks",12,null,0]
[null,"Vypracování protokolu optiky","ks",1,null,0]
[null,"Revize elektro slaboproudé instalace","ks",1,null,0]
[null,"CELKEM měření kabeláže","[Kč]",null,null,{"$f":"SUM(F224:F230)","v":0}]
[]
[null,"Dodávky Jednotný čas","měr.","celk.","jedn.","cena"]
[null,"Specifikace","jed.","mn.","cena","celková"]
[null,"Hodiny do učebny - nástěnné"]
[null,"Černý rám,  jednostranné 4místné interiérové digitální hodiny, barva číslic červená, výška číslic 100 mm, čitelnost na vzdálenost 40m, synchronizace NTP, napájení PoE, spotřeba 7VA - možnost střídavého zobrazení datum/čas - po připojení teplotního čidla možnost zobrazení teploty - rozměry (š x v x h) 510 x 169 x 39 mm, hmotnost 2,4 kg - rám hodin z hliníkových eloxovaných profilů - IP 40, nástěnná montáž","ks",40,null,{"$f":"(D236*E236)","v":0}]
[null,"Vestavěný piezoměnič - zvonění (do hodin v učebnách)\n","ks",31,null,0]
[null,"Hodiny na chodbu - závěsné"]
[null,"Černý rám, dvoustranné 4místné interiérové digitální hodiny, barva číslic červená, výška číslic 100 mm, čitelnost na vzdálenost 40 m, synchronizace NTP, možnost střídavého zobrazení datum / čas, po připojení teplotního čidla možnost zobrazení teploty, napájení PoE, spotřeba 14 VA,  rozměry (š x v x h)  510 x 169 x 78 mm, hmotnost 4,4 kg, rám hodin z Al eloxovaných profilů vč. stropního závěsu pro montáž, IP 40  ","ks",12,null,{"$f":"(D239*E239)","v":0}]
[null,"Vestavěné relé pro připojení zvonku, FW pro spínací funkce, maximální napěťová zatížitelnost 230Vac, maximální proudová zatížitelnost 6A\n","ks",18,null,0]
[null,"Výkonný zvonek s motorovým pohonem, napájecí napětí 12 V=, spotřeba 100 mA - hlasitost 95 dB /1 m - hmotnost 1 kg - pr. 152 mm x 63 mm","ks",18,null,0]
[null,"SW - programování,  spínací a signalizační funkce pro DC, DE hodiny a doorbox - umožňuje programovat každé hodiny nebo doorbox  samostatně či po skupinách  (týdenní cyklus) - program odešle tabulku spínání do hodin (doorboxu);  zařízení pak spínají dle této tabulky samostatě dle času  (program nemusí být neustále spuštěn)\n","ks",1,null,0]
[null,"SW - konfigurační software pro NTP podružné hodiny a další koncová zařízení (např. NMI) - podpora unicast nebo multicast - pro max. 50 podružných hodin (strojků) - pro max. 2 hlavní hodiny\n","ks",1,null,0]
[null,"Hmoždinka d8 kovová","ks",48,null,0]
[null,"Hmoždinka d8 plast","ks",200,null,0]
[null,"Ostatní podružný materiál ","ks",1,null,0]
[null,"CELKEM materiál","[Kč]",null,null,{"$f":"SUM(F234:F246)","v":0}]
[]
[null,"Montáže Jednotný čas","měr.","celk.","jedn.","cena"]
[null,"Specifikace","jed.","mn.","cena","celková"]
[null,"Montáž dvoustranné 4místné interiérové digitální hodiny PoE","ks",12,null,{"$f":"(D251*E251)","v":0}]
[null,"Montáž jednostranné 4místné interiérové digitální hodiny PoE","ks",40,null,0]
[null,"Montáž vestavného piezoměniče - zvonění ","ks",31,null,0]
[null,"Montáž vestavného relé pro připojení zvonku","ks",18,null,0]
[null,"Montáž zvonku s motorovým pohonem","ks",18,null,0]
[null,"Naprogramování hodin, komplexní vyzkoušení, revize","ks",1,null,0]
[null,"Ostatní práce","ks",1,null,0]
[null,"CELKEM montáž","[Kč]",null,null,{"$f":"SUM(F250:F257)","v":0}]
[]
[]
[null,"Dodávky trasy","měr.","celk.","jedn.","cena"]
[null,"Specifikace","jed.","mn.","cena","celková"]
[null,"Příchytka kabelová, GRIP40","ks",6,null,{"$f":"(D263*E263)","v":0}]
[null,"Kabelová spona 2033 STD ","ks",4,null,0]
[null,"Plastový bezhalogenový žlab PK 110x70 D HF (mm) vč. víka","m",88,null,0]
[null,"Plastový bezhalogenový žlab LHD 20x20HF (mm) vč. víka","m",292,null,0]
[null,"Plastový bezhalogenový žlab LHD 40x20HF (mm) vč. víka","m",644,null,0]
[null,"Plastový bezhalogenový žlab LHD 40x40HF (mm) vč. víka","m",92,null,0]
[null,"Příchytka HL GRIP1 (vnitřní rozměry = 50 x 42mm)","ks",76,null,0]
[null,"Příchytka HL GRIP2 (vnitřní rozměry = 52 x 70mm)","ks",20,null,0]
[null,"Skupinový držák SD2 (vnitřní rozměry = 50 x 80mm)","ks",104,null,0]
[null,"Hmoždinka HL KRH rozpěrná kovová 8/60mm","ks",200,null,0]
[null,"Příchytka dvojitá 6716ED, PO GMT","ks",50,null,0]
[null,"Příchytka jednostranná 6710, PO GMT","ks",150,null,0]
[null,"SB 6,3x35, POGMT, šroub do betonu","ks",200,null,0]
[null,"LSOH tuhá samozhášivá trubka 8020HFFA (D vnější/vnitřní=20/15,7mm)","m",4,null,0]
[null,"LSOH tuhá samozhášivá trubka 8025HFFA (D vnější/vnitřní=25/20,2mm)","m",4,null,0]
[null,"LSOH tuhá samozhášivá trubka 8032HFFA (D vnější/vnitřní=32/27mm)","m",11,null,0]
[null,"LSOH tuhá samozhášivá trubka 8040HFFA (D vnější/vnitřní=40/34,8mm)","m",17,null,0]
[null,"LSOH tuhá samozhášivá trubka 8050HFFA (D vnější/vnitřní=50/44,2mm)","m",8,null,0]
[null,"Elektroinstalační trubka Super Monoflex 1216EHFPP","m",25,null,0]
[null,"Příchytka omega 5216E ZNM pro trubku 1216 HF","ks",10,null,0]
[null,"Elektroinstalační trubka Super Monoflex 1225HFPP","m",64,null,0]
[null,"Příchytka omega 5225ZNM pro trubku 1225 HF","ks",6,null,0]
[null,"Elektroinstalační trubka Super Monoflex 1240HFPP","m",18,null,0]
[null,"Požární trasa - NORMOVÁ - uchycení do stropu"]
[null,"Ocelový žlab KZ 60 x 50 x 1,5mm","m",94,null,{"$f":"(D287*E287)","v":0}]
[null,"KSBS 50, SPOJKA","ks",36,null,0]
[null,"NSM 6X10, ŠROUB VRAT.+MATICE","ks",540,null,0]
[null,"KPOZ 10, KOTVA POŽÁRNĚ ODOLNÁ","ks",158,null,0]
[null,"M 10, MATICE ŠESTIHRANNÁ","ks",158,null,0]
[null,"MP 41x41, PROFIL MONTÁŽNÍ","m",8,null,0]
[null,"MZ 10, MATICE K ZÁVITOVÝM TYČÍM","ks",158,null,0]
[null,"PD 10, PODLOŽKA","ks",158,null,0]
[null,"PVL 10, PODLOŽKA VELKÁ","ks",158,null,0]
[null,"PVL 6, PODLOŽKA VELKÁ","ks",158,null,0]
[null,"S 6x20 M, ŠROUB S KULATOU HL+MATICE","ks",158,null,0]
[null,"ZT 10, TYČ ZÁVITOVÁ","m",32,null,0]
[null,"OPT, OZNAČENÍ POŽÁRNÍCH TRAS","ks",3,null,0]
[null,"O 90x60x50, OBLOUK 90°","ks",1,null,0]
[null,"Uchycení do stropu po 1,5m"]
[null,"KZI 60x100x0,75, Žlab s interní spojkou","m",24,null,0]
[null,"NSM 6x10, ŠROUB VRAT.+MATICE","ks",32,null,0]
[null,"ZT 8, TYČ ZÁVITOVÁ","m",7,null,0]
[null,"KKZ 8, KOTVA KOVOVÁ ZATLOUKACÍ","ks",32,null,0]
[null,"MP 41x21x1.50, PROFIL MONTÁŽNÍ","m",2.4,null,0]
[null,"M 8, MATICE ŠESTIHRANNÁ","ks",64,null,0]
[null,"PVL 8, PODLOŽKA VELKÁ","ks",64,null,0]
[null,"PVL 6, PODLOŽKA VELKÁ","ks",32,null,0]
[null,"NSM 6x10, ŠROUB VRAT.+MATICE","ks",32,null,0]
[null,"Uchycení do stropu po 1,5m"]
[null,"KZI 60x200x0,75, Žlab s interní spojkou","m",44,null,0]
[null,"NSM 6x10, ŠROUB VRAT.+MATICE","ks",48,null,0]
[null,"ZT 8, TYČ ZÁVITOVÁ","m",13,null,0]
[null,"KKZ 8, KOTVA KOVOVÁ ZATLOUKACÍ","ks",60,null,0]
[null,"MP 41x21x1.50, PROFIL MONTÁŽNÍ","m",8,null,0]
[null,"M 8, MATICE ŠESTIHRANNÁ","ks",120,null,0]
[null,"PVL 8, PODLOŽKA VELKÁ","ks",120,null,0]
[null,"PVL 6, PODLOŽKA VELKÁ","ks",58,null,0]
[null,"NSM 6x10, ŠROUB VRAT.+MATICE","ks",58,null,0]
[null,"Uchycení do stropu po 1,5m"]
[null,"KZI 60x300x0,75, Žlab s interní spojkou","m",102,null,0]
[null,"NSM 6x10, ŠROUB VRAT.+MATICE","ks",136,null,0]
[null,"ZT 8, TYČ ZÁVITOVÁ","m",27,null,0]
[null,"KKZ 8, KOTVA KOVOVÁ ZATLOUKACÍ","ks",136,null,0]
[null,"MP 41x21x1.50, PROFIL MONTÁŽNÍ","m",23.8,null,0]
[null,"M 8, MATICE ŠESTIHRANNÁ","ks",272,null,0]
[null,"PVL 8, PODLOŽKA VELKÁ","ks",272,null,0]
[null,"PVL 6, PODLOŽKA VELKÁ","ks",136,null,0]
[null,"NSM 6x10, ŠROUB VRAT.+MATICE","ks",136,null,0]
[null,"Kabelové lávky uchycení po 1,5m jako stoupající trasa"]
[null,"KL 60x300, Lávka kabelová","m",12,null,0]
[null,"S 60x200, SPOJKA","ks",8,null,0]
[null,"NSM 6x10, ŠROUB VRAT.+MATICE","ks",32,null,0]
[null,"KLSU, ÚCHYT STĚNOVÝ PRO KL","ks",16,null,0]
[null,"KPO 8x77, KOTVA POŽÁRNĚ ODOLNÁ","ks",16,null,0]
[null,"NSM 6x10, ŠROUB VRAT.+MATICE","ks",32,null,0]
[null,"Uchycení do stropu po 1,5m"]
[null,"Kabelové lávky nutno upravit na stavbě na potřebnou délku 2800mm"]
[null,"KL 60x300, LÁVKA KABELOVÁ","m",6,null,0]
[null,"S 60x200, SPOJKA","ks",4,null,0]
[null,"NSM 6x10, ŠROUB VRAT.+MATICE","ks",16,null,0]
[null,"ZT 8, TYČ ZÁVITOVÁ","m",2,null,0]
[null,"KKZ 8, KOTVA KOVOVÁ ZATLOUKACÍ","ks",8,null,0]
[null,"MP 41x21x1.50, PROFIL MONTÁŽNÍ","m",2.8,null,0]
[null,"M 8, MATICE ŠESTIHRANNÁ","ks",16,null,0]
[null,"PVL 8, PODLOŽKA VELKÁ","ks",16,null,0]
[null,"PVL 6, PODLOŽKA VELKÁ","ks",8,null,0]
[null,"NSM 6x10, ŠROUB VRAT.+MATICE","ks",8,null,0]
[null,"PKC1 1211, PŘÍCHYT.KAB.TYP H 54-63MM","ks",70,null,0]
[null,"Přístrojové kanály v IT učebně č.114"]
[null,"GS-S70130RW, Podparapetní ocelový kanál 70x130x2000 St čistě bílá RAL 9010\n","m",28,null,{"$f":"(D352*E352)","v":0}]
[null,"GS-OTRW, Víko 80x2000mm St čistě bílá RAL 9010\n","m",28,null,0]
[null,"GS-KUP70, Spojka 70x120x0,5 V2A 1.4301\n\n\n","ks",19,null,0]
[null,"GS-SI70130RW, Vnitřní roh 70x130mm St čistě bílá RAL 9010\n\n","ks",3,null,0]
[null,"GS-SA70130RW, Vnější roh 70x130mm St čistě bílá RAL 9010\n\n","ks",1,null,0]
[null,"GS-TW70, Přepážka  70mm 54x24x2000mm St\n\n","m",27,null,0]
[null,"GS-E70130RW, Koncový díl  70x130mm St čistě bílá RAL 9010\n\n","ks",4,null,0]
[null,"AR45-F1 RW, Krycí rámeček Modul 45, 1 násobný 84x84mm PC čistě bílá RAL 9010\n","ks",80,null,0]
[null,"71GD8-2, Přístrojová krabice 1násobná pro Modul 45 71x76x51 PA ocelově šedá RAL 7011\n\n","m",80,null,0]
[null,"GS-ST70130RW, T - kus 70x130mm St čistě bílá RAL 9010\n\n","m",1,null,0]
[null,"Elektroinst.krabice do nábytku KPRL 64-60/LD přístrojová, hl.60mm pod zásuvku","ks",15,null,0]
[null,"Elektroinstalační krabice do zdi KU 68-1902 (s víčkem) ","ks",10,null,0]
[null,"Elektroinstalační krabice do zdi KPR 68 přístrojová, hl.66mm pod zásuvku","ks",21,null,0]
[null,"Elektroinstalační krabice do zdi KO100E KA odbočná s víčkem","ks",4,null,0]
[null,"KT 250_KB s víčkem - elektroinstalační krabice podomítková ","ks",1,null,0]
[null,"Elektroinstalační krabice podomítková plast LSOH š175 x v80 x h68mm","ks",1,null,0]
[null,"Vodič CY, B2ca s1 d 0,6mm2 zelenožlutý","m",38,null,{"$f":"(D368*E368)","v":0}]
[null,"Hmoždinka d6 plast","ks",100,null,{"$f":"(D369*E369)","v":0}]
[null,"Hmoždinka d8 plast","ks",3200,null,0]
[null,"Hmoždinka d10 plast","ks",200,null,0]
[null,"Hmoždinka KPO 10x115mm kovová","ks",20,null,0]
[null,"Hmoždinka KPO 6x50mm kovová","ks",20,null,0]
[null,"Sádra","kg",80,null,0]
[null,"Protipožární utěsnění prostupu kabelů v plech. žlabech – rozebíratelná kabelová ucpávka z polštářů 200 x 400mm do EI60 (mezi rozvodnou SLP č. 126 a chodbou č. 134)","ks",2,null,0]
[null,"Protipožární utěsnění prostupu kabelů v plech. žlabech – rozebíratelná kabelová ucpávka z polštářů  200 x 300mm do EI60 (mezi chodbami č. 134 a č. 117) ","ks",2,null,0]
[null,"Podružný materiál (vruty, stah. pásky, očka, štítky značení pož. ucp.)","celk.",1,null,{"$f":"(D377*E377)","v":0}]
[null,"CELKEM materiál trasy","[Kč]",null,null,{"$f":"SUM(F261:F377)","v":0}]
[]
[null,"Montáž trasy","měr.","celk.","jedn.","cena"]
[null,"Specifikace","jed.","mn.","cena","celková"]
[null,"Vyznačení trasy","m",1800,null,{"$f":"(D382*E382)","v":0}]
[null,"Připojení k uzemnění PE","ks",12,null,0]
[null,"Montáž 60x50mm ocelový žlab (komplet)","m",94,null,0]
[null,"Montáž 60x100mm ocelový žlab (komplet)","m",24,null,0]
[null,"Montáž 60x200mm ocelový žlab (komplet)","m",44,null,{"$f":"(D386*E386)","v":0}]
[null,"Montáž 60x300mm ocelový žlab (komplet)","m",102,null,0]
[null,"Tvarové úpravy ocelových žlabů ","ks",10,null,0]
[null,"Montáž odbočení ","m",5,null,0]
[null,"Montáž rohu ocelového ","ks",5,null,0]
[null,"Uložení CY, B2ca s1 d 0,  6mm2 zelenožlutý do trasy","m",38,null,{"$f":"(D391*E391)","v":0}]
[null,"Kabelová lávka KL 60x300mm","m",18,null,{"$f":"(D392*E392)","v":0}]
[null,"Trubka ohebná s lankem","m",107,null,0]
[null,"Trubka tuhá v průrazech","m",44,null,0]
[null,"Trubka tuhá - tvarové úpravy na místě","ks",86,null,0]
[null,"Montáž žlabu PVC 20x20mm","m",292,null,0]
[null,"Montáž žlabu PVC 40x20mm","m",644,null,0]
[null,"Montáž žlabu PVC 40x40mm","m",92,null,0]
[null,"Montáž žlabu PVC 110x70mm","m",88,null,0]
[null,"Montáž parapetního ocelového žlabu 70x130mm (učebny IT)","m",28,null,0]
[null,"Montáž tvarových prvků (roh, T-kus, koncový díl)","m",9,null,0]
[null,"Krabice přístrojová do parapetního kanálu","ks",80,null,0]
[null,"Krabice KU 68 pod omítku","ks",46,null,0]
[null,"Elektroinstalační krabice KO100  pod omítku","ks",4,null,0]
[null,"Elektroinstalační krabice podomítková plast LSOH š175 x v80 x h68mm ","ks",1,null,0]
[null,"Montáž příchytky, spony ","ks",426,null,0]
[null,"Montáž hmoždinky plast.","ks",3500,null,0]
[null,"Ocelová hmoždinka, kotva","ks",40,null,0]
[null,"Protipožární utěsnění prostupu kabelů v plech. žlabech – rozebíratelná kabelová ucpávka z polštářů 200 x 400mm do EI60 ","ks",2,null,0]
[null,"Protipožární utěsnění prostupu kabelů v plech. žlabech – rozebíratelná kabelová ucpávka z polštářů 200 x 300mm do EI60 ","ks",2,null,0]
[null,"Označení protipožárních utěsnění, fotodokumentace","kmpl.",1,null,0]
[null,"Ostatní práce (tmelení, značení, opravy stáv.trasy, svařování…,)","celk.",1,null,0]
[null,"CELKEM montáž trasy","[Kč]",null,null,{"$f":"SUM(F381:F412)","v":0}]
[]
[null,"Stavební práce","měr.","celk.","jedn.","cena"]
[null,"Specifikace","jed.","mn.","cena","celková"]
[null,"Vysekání otvoru do cihelného zdiva pro krabici š175 x v80 x h68mm","ks",1,null,{"$f":"(D417*E417)","v":0}]
[null,"Vysekání otvoru do cihelného zdiva pro krabici dveřního komunikátoru","ks",3,null,0]
[null,"Průraz podlažím","ks",60,null,0]
[null,"Průrazy do 300mm vč. začistění","ks",101,null,0]
[null,"Průrazy do 450mm vč. začistění","ks",6,null,0]
[null,"Vybourání otvorů pro kabelové žlaby v příčkách z chodby 2.NP do m. č. 109, 112, 114, 115.","HZS",4,null,0]
[null,"Demontáže stávajících povrchových tras a zásuvek SLP ","HZS",200,null,0]
[null,"Tmelení, zapravení otvorů, úklid…","ks",1,null,{"$f":"(D424*E424)","v":0}]
[null,"CELKEM stavební práce","[Kč]",null,null,{"$f":"SUM(F417:F424)","v":0}]